Workbook

Sheet Training Relative to Best
B2: Time Based Sport | F2: Notes
B4: Formula | D4: [1 - (( TT - TS ) / TS )]
B5: Step | D5: =ROUNDUP(D7*0.01,2) -> 0.6
B7: Time Standard (TS) | D7: 60 | F7: Note: Time Standard can be considered "Best Time"
B9: Time Tested (TT) | D9: Relative to Time Standard | F9: Note: Time Tested can be considered "Interval"
B10: aka "Interval" | D10: aka "Relative to Best Time"
B12: 90 | D12: =IF((1-((B12-$D$7)/$D$7))<0,0,(1-((B12-$D$7)/$D$7))) -> 0.5
B13: 75 | D13: 0.75
B14: =+D7 -> 60 | D14: 1
B15: =+B14+$D$5 -> 60.6 | D15: =IF((1-((B15-$D$7)/$D$7))<0,0,(1-((B15-$D$7)/$D$7))) -> 0.99
B16: 61.2 | D16: =IF((1-((B16-$D$7)/$D$7))<0,0,(1-((B16-$D$7)/$D$7))) -> 0.98
B17: 61.8 | D17: 0.97
B18: 62.4 | D18: 0.96
B19: 63 | D19: 0.95
B20: 63.6 | D20: 0.94
B21: 64.2 | D21: 0.93
B22: 64.8 | D22: 0.92
B23: 65.4 | D23: 0.91
B24: 66 | D24: 0.9
B25: 66.6 | D25: 0.89
B26: 67.2 | D26: 0.88
B27: 67.8 | D27: 0.87
B28: 68.4 | D28: 0.86
B29: 69 | D29: 0.85
B30: 69.6 | D30: 0.84
B31: 70.2 | D31: 0.83
B32: 70.8 | D32: 0.82
B33: 71.4 | D33: 0.81
B34: 72 | D34: 0.8
B35: 72.6 | D35: 0.79
B36: 73.2 | D36: 0.78
B37: 73.8 | D37: 0.77
B38: 74.4 | D38: 0.76
B39: 75 | D39: 0.75
B40: 75.6 | D40: 0.74
B41: 76.2 | D41: 0.73
B42: 76.8 | D42: 0.72
B43: 77.4 | D43: 0.71
B44: 78 | D44: 0.7
B45: 78.6 | D45: 0.69
B46: 79.2 | D46: 0.68
B47: 79.8 | D47: 0.67
B48: 80.4 | D48: 0.66
B49: 81 | D49: 0.65
B50: 81.6 | D50: 0.64
B51: 82.2 | D51: 0.63
B52: 82.8 | D52: 0.62
B53: 83.4 | D53: 0.61
B54: 84 | D54: 0.6
B55: 84.6 | D55: 0.59
B56: 85.2 | D56: 0.58
B57: 85.8 | D57: 0.57
B58: 86.4 | D58: 0.56
B59: 87 | D59: 0.55
B60: 87.6 | D60: 0.54
B61: 88.2 | D61: 0.53
B62: 88.8 | D62: 0.52
B63: 89.4 | D63: 0.51
B64: 90 | D64: 0.5
B65: 90.6 | D65: 0.49
B66: 91.2 | D66: 0.48
B67: 91.8 | D67: 0.47
B68: 92.4 | D68: 0.46
B69: 93 | D69: 0.45
B70: 93.6 | D70: 0.44
B71: 94.2 | D71: 0.43
B72: 94.8 | D72: 0.42
B73: 95.4 | D73: 0.41
B74: 96 | D74: 0.4
B75: 96.6 | D75: 0.39
B76: 97.2 | D76: 0.38
B77: 97.8 | D77: 0.37
B78: 98.4 | D78: 0.36
B79: =+B78+$D$5 -> 99 | D79: 0.35
B80: 99.6 | D80: =IF((1-((B80-$D$7)/$D$7))<0,0,(1-((B80-$D$7)/$D$7))) -> 0.34
B81: 100.2 | D81: 0.33
B82: 100.8 | D82: 0.32
B83: 101.4 | D83: 0.31
B84: 102 | D84: 0.3
B85: 102.6 | D85: 0.29
B86: 103.2 | D86: 0.28
B87: 103.8 | D87: 0.27
B88: 104.4 | D88: 0.26
B89: 105 | D89: 0.25
B90: 105.6 | D90: 0.24
B91: 106.2 | D91: 0.23
B92: 106.8 | D92: 0.22
B93: 107.4 | D93: 0.21
B94: 108 | D94: 0.2
B95: 108.6 | D95: 0.19
B96: 109.2 | D96: 0.18
B97: 109.8 | D97: 0.17
B98: 110.4 | D98: 0.16
B99: 111 | D99: 0.15
B100: 111.6 | D100: 0.14
B101: 112.2 | D101: 0.13
B102: 112.8 | D102: 0.12
B103: 113.4 | D103: 0.11
B104: 114 | D104: 0.1
B105: 114.6 | D105: 0.09
B106: 115.2 | D106: 0.08
B107: 115.8 | D107: 0.07
B108: 116.4 | D108: 0.06
B109: 117 | D109: 0.05
B110: 117.6 | D110: 0.04
B111: 118.2 | D111: 0.03
B112: 118.8 | D112: 0.02
B113: 119.4 | D113: 0.01
B114: 120 | D114: 8.770761895e-15
B115: 120.6 | D115: 0
B116: 121.2 | D116: 0
B117: 121.8 | D117: 0
B118: 122.4 | D118: 0
B119: 123 | D119: 0
B120: 123.6 | D120: 0
B121: 124.2 | D121: 0
B122: 124.8 | D122: 0
B123: 125.4 | D123: 0
B124: 126 | D124: 0
B125: 126.6 | D125: 0
B126: 127.2 | D126: 0
B127: 127.8 | D127: 0
B128: 128.4 | D128: 0
B129: 129 | D129: 0
B130: 129.6 | D130: 0
B131: 130.2 | D131: 0
B132: 130.8 | D132: 0
B133: 131.4 | D133: 0
B134: 132 | D134: 0
B135: 132.6 | D135: 0
B136: 133.2 | D136: 0
B137: 133.8 | D137: 0
B138: 134.4 | D138: 0
B139: 135 | D139: 0
B140: 135.6 | D140: 0
B141: 136.2 | D141: 0
B142: 136.8 | D142: 0
B143: =+B142+$D$5 -> 137.4 | D143: 0
B144: 138 | D144: =IF((1-((B144-$D$7)/$D$7))<0,0,(1-((B144-$D$7)/$D$7))) -> 0
B145: 138.6 | D145: 0
B146: 139.2 | D146: 0
B147: 139.8 | D147: 0
B148: 140.4 | D148: 0
B149: 141 | D149: 0
B150: 141.6 | D150: 0
B151: 142.2 | D151: 0
B152: 142.8 | D152: 0
B153: 143.4 | D153: 0
B154: 144 | D154: 0
B155: 144.6 | D155: 0
B156: 145.2 | D156: 0
B157: 145.8 | D157: 0
B158: 146.4 | D158: 0
B159: 147 | D159: 0
B160: 147.6 | D160: 0
B161: 148.2 | D161: 0
B162: 148.8 | D162: 0
B163: 149.4 | D163: 0
B164: 150 | D164: 0
B165: 150.6 | D165: 0
B166: 151.2 | D166: 0
B167: 151.8 | D167: 0
B168: 152.4 | D168: 0
B169: 153 | D169: 0
B170: 153.6 | D170: 0
B171: 154.2 | D171: 0
B172: 154.8 | D172: 0
B173: 155.4 | D173: 0
B174: 156 | D174: 0
B175: 156.6 | D175: 0
B176: 157.2 | D176: 0
B177: 157.8 | D177: 0
B178: 158.4 | D178: 0
B179: 159 | D179: 0
B180: 159.6 | D180: 0
B181: 160.2 | D181: 0
B182: 160.8 | D182: 0
B183: 161.4 | D183: 0
B184: 162 | D184: 0
B185: 162.6 | D185: 0
B186: 163.2 | D186: 0
B187: 163.8 | D187: 0
B188: 164.4 | D188: 0
B189: 165 | D189: 0
B190: 165.6 | D190: 0
B191: 166.2 | D191: 0
B192: 166.8 | D192: 0
B193: 167.4 | D193: 0
B194: 168 | D194: 0
B195: 168.6 | D195: 0
B196: 169.2 | D196: 0
B197: 169.8 | D197: 0
B198: 170.4 | D198: 0
B199: 171 | D199: 0
B200: 171.6 | D200: 0
B201: 172.2 | D201: 0
B202: 172.8 | D202: 0
B203: 173.4 | D203: 0
B204: 174 | D204: 0
B205: 174.6 | D205: 0
... 209 more rows

Sheet Backup Data (hidden)
B3: Time Based Sport | L3: Time Based Sport
B4: Performance Points (PP) | L4: Time Expected (TE) | Y4: Interval Degree of Difficulty (iDoD)
B6: Methodology | D6: Approach A - Distance | E6: Approach B - Size | N6: Method A - Distance | Q6: Method B - Size | AA6: Method A - Distance | AD6: Method B - Size
B7: Foundation | D7: (X-Y) / Y | E7: Y / X | N7: Athlete 1 | O7: Athlete 2 | Q7: Athlete 1 | R7: Athlete 2 | AA7: Athlete 1 | AB7: Athlete 2 | AD7: Athlete 1 | AE7: Athlete 2
B8: Formula | D8: [1-((TT-TS)/TS)]*100 | E8: (TS / TT)*100 | L8: Time Tested (TT) | N8: 56.91 | O8: 51.5 | Q8: 56.91 | R8: 51.5 | Y8: Time Tested (TT) | AA8: =+Q8 -> 56.91 | AB8: =+R8 -> 51.5 | AD8: =+N8 -> 56.91 | AE8: =+O8 -> 51.5
B9: Time Standard (TS) | D9: 60 | E9: 46.91 | L9: Interval (IV) | N9: 90 | O9: 90 | Q9: 90 | R9: 90 | Y9: Interval (IV) | AA9: =+Q9 -> 90 | AB9: =+R9 -> 90 | AD9: =+N9 -> 90 | AE9: =+O9 -> 90
B10: Step | D10: =ROUNDUP(D9*0.01,2) -> 0.6 | E10: =ROUNDUP(E9*0.01,2) -> 0.47 | L10: Interval Degree of Difficulty (iDoD) % | N10: =+N8/N9 -> 0.6323333333 | O10: =+O8/O9 -> 0.5722222222 | Q10: =+Q8/Q9 -> 0.6323333333 | R10: =+R8/R9 -> 0.5722222222 | Y10: Interval Degree of Difficulty (iDoD) % | AA10: =+AA8/AA9 -> 0.6323333333 | AB10: =+AB8/AB9 -> 0.5722222222 | AD10: =+AD8/AD9 -> 0.6323333333 | AE10: =+AE8/AE9 -> 0.5722222222
L11: Intensity (IT) = % of Personal Record (PR) | N11: 0.75 | O11: 0.75 | Q11: 0.75 | R11: 0.75
L12: Time Expected (TE) | N12: =+N$8+((1-N$11)*100*(N$8/100)) -> 71.1375 | O12: =+O$8+((1-O$11)*100*(O$8/100)) -> 64.375 | Q12: =+Q8/Q11 -> 75.88 | R12: =+R8/R11 -> 68.66666667
L13: Time Achieved (TA) | N13: 58.5 | O13: 58.5 | Q13: 58.5 | R13: 58.5
L15: Performance Points (A - Distance) | N15: =(1-((N$13-N$12)/N$12))*100 -> 117.7648919 | O15: =(1-((O$13-O$12)/O$12))*100 -> 109.1262136 | Q15: =(1-((Q$13-Q$12)/Q$12))*100 -> 122.9045862 | R15: =(1-((R$13-R$12)/R$12))*100 -> 114.8058252
L16: Performance Points (B - Size) | N16: =(N$12/N$13)*100 -> 121.6025641 | O16: =(O$12/O$13)*100 -> 110.042735 | Q16: =(Q$12/Q$13)*100 -> 129.7094017 | R16: =(R$12/R$13)*100 -> 117.3789174
L17: Performance Points (A - Distance Interval Adjusted) | N17: =+N15*N$10 -> 74.46666667 | O17: =+O15*O$10 -> 62.44444444 | Q17: =+Q15*Q$10 -> 77.71666667 | R17: =+R15*R$10 -> 65.69444444
L18: Performance Points (B - Size Interval Adjusted) | N18: =+N16*N$10 -> 76.8933547 | O18: =+O16*O$10 -> 62.96889839 | Q18: =+Q16*Q$10 -> 82.01957835 | R18: =+R16*R$10 -> 67.16682494
AA21: Methodology not applicable
N22: Approach A - Distance | Q22: Approach B - Size | AA22: Approach A - Distance | AD22: Approach B - Size
D23: Approach A - Distance | E23: Approach B - Size | G23: Approach A - Distance | H23: Approach B - Size | N23: Athlete 1 | O23: Athlete 2 | Q23: Athlete 1 | R23: Athlete 2 | T23: Approach A - Distance | U23: Approach B - Size | AA23: Athlete 1 | AB23: Athlete 2 | AD23: Athlete 1 | AE23: Athlete 2 | AG23: Approach A - Distance | AH23: Approach B - Size
B24: Time Tested (TT) | D24: Performance Points | E24: Performance Points | G24: Slope | H24: Slope | L24: Intensity | N24: Time Expected | O24: Time Expected | Q24: Time Expected | R24: Time Expected | T24: Slope | U24: Slope | Y24: Interval (IV) | AA24: iDoD | AB24: iDoD | AD24: iDoD | AE24: iDoD | AG24: Slope | AH24: Slope
B25: 50 | D25: =(1-((B25-$D$9)/$D$9))*100 -> 116.6666667 | E25: =($E$9/$B25)*100 -> 93.82 | L25: 1e-08 | N25: =+N$8+((1-$L25)*100*(N$8/100)) -> 113.8199994 | O25: 102.9999995 | Q25: =+Q$8/$L25 -> 5691000000 | R25: 5150000000 | Y25: 80 | AA25: =1-(($Y25-AA$8)/AA$8) -> 0.594271657 | AB25: 0.4466019417 | AD25: =IFERROR(AD$8/$Y25,0) -> 0.711375 | AE25: 0.64375
B26: 51 | D26: =(1-((B26-$D$9)/$D$9))*100 -> 115 | E26: =($E$9/$B26)*100 -> 91.98039216 | L26: 0.75 | N26: 71.1375 | O26: 64.375 | Q26: 75.88 | R26: 68.66666667 | Y26: 85 | AA26: 0.5064136356 | AB26: 0.3495145631 | AD26: 0.6695294118 | AE26: 0.6058823529
B27: =+D9 -> 60 | D27: =(1-((B27-$D$9)/$D$9))*100 -> 100 | E27: =($E$9/$B27)*100 -> 78.18333333 | L27: 1 | N27: 56.91 | O27: 51.5 | Q27: 56.91 | R27: 51.5 | T27: =IFERROR((N27-N$27)/(L27-L$27),T28) -> -56.91 | U27: =+T27 -> -56.91 | Y27: =+AA9 -> 90 | AA27: 0.4185556141 | AB27: 0.2524271845 | AD27: 0.6323333333 | AE27: 0.5722222222
B28: =+B27+$D$10 -> 60.6 | D28: =(1-((B28-$D$9)/$D$9))*100 -> 99 | E28: =($E$9/$B28)*100 -> 77.40924092 | G28: =(D28-D$27)/(B28-B$27) -> -1.666666667 | H28: =(E28-E$27)/(B28-B$27) -> -1.290154015 | L28: =+L27-0.05 -> 0.95 | N28: 59.7555 | O28: 54.075 | Q28: 59.90526316 | R28: 54.21052632 | T28: =(N28-N$27)/(L28-L$27) -> -56.91 | U28: =(Q28-Q$27)/(L28-L$27) -> -59.90526316 | Y28: =+Y27+5 -> 95 | AA28: 0.3306975927 | AB28: 0.1553398058 | AD28: 0.5990526316 | AE28: 0.5421052632 | AG28: =(AA28-AA$27)/(Y28-Y$27) -> -0.01757160429 | AH28: =(AD28-AD$27)/(Y28-Y$27) -> -0.006656140351
B29: =+B28+$D$10 -> 61.2 | D29: =(1-((B29-$D$9)/$D$9))*100 -> 98 | E29: =($E$9/$B29)*100 -> 76.6503268 | G29: =(D29-D$27)/(B29-B$27) -> -1.666666667 | H29: -1.277505447 | L29: =+L28-0.05 -> 0.9 | N29: 62.601 | O29: 56.65 | Q29: 63.23333333 | R29: 57.22222222 | T29: -56.91 | U29: =(Q29-Q$27)/(L29-L$27) -> -63.23333333 | Y29: =+Y28+5 -> 100 | AA29: 0.2428395713 | AB29: 0.05825242718 | AD29: 0.5691 | AE29: 0.515 | AG29: -0.01757160429 | AH29: =(AD29-AD$27)/(Y29-Y$27) -> -0.006323333333
B30: 61.8 | D30: 97 | E30: 75.90614887 | G30: -1.666666667 | H30: -1.265102481 | L30: 0.85 | N30: 65.4465 | O30: 59.225 | Q30: 66.95294118 | R30: 60.58823529 | T30: -56.91 | U30: -66.95294118 | Y30: =+Y29+5 -> 105 | AA30: 0.1549815498 | AB30: -0.03883495146 | AD30: 0.542 | AE30: 0.4904761905 | AG30: -0.01757160429 | AH30: -0.006022222222
B31: 62.4 | D31: 96 | E31: 75.17628205 | G31: -1.666666667 | H31: -1.252938034 | L31: 0.8 | N31: 68.292 | O31: 61.8 | Q31: 71.1375 | R31: 64.375 | T31: -56.91 | U31: -71.1375 | Y31: 110 | AA31: 0.06712352838 | AB31: -0.1359223301 | AD31: 0.5173636364 | AE31: 0.4681818182 | AG31: -0.01757160429 | AH31: -0.005748484848
B32: 63 | D32: 95 | E32: 74.46031746 | G32: -1.666666667 | H32: -1.241005291 | L32: 0.75 | N32: 71.1375 | O32: 64.375 | Q32: 75.88 | R32: 68.66666667 | T32: -56.91 | U32: -75.88 | Y32: 115 | AA32: -0.02073449306 | AB32: -0.2330097087 | AD32: 0.4948695652 | AE32: 0.447826087 | AG32: -0.01757160429 | AH32: -0.005498550725
B33: 63.6 | D33: 94 | E33: 73.75786164 | G33: -1.666666667 | H33: -1.229297694 | L33: 0.7 | N33: 73.983 | O33: 66.95 | Q33: 81.3 | R33: 73.57142857 | T33: -56.91 | U33: -81.3 | Y33: 120 | AA33: -0.1085925145 | AB33: -0.3300970874 | AD33: 0.47425 | AE33: 0.4291666667 | AG33: -0.01757160429 | AH33: -0.005269444444
B34: 64.2 | D34: 93 | E34: 73.06853583 | G34: -1.666666667 | H34: -1.21780893 | L34: 0.65 | N34: 76.8285 | O34: 69.525 | Q34: 87.55384615 | R34: 79.23076923 | T34: -56.91 | U34: -87.55384615 | Y34: 125 | AA34: -0.1964505359 | AB34: -0.427184466 | AD34: 0.45528 | AE34: 0.412 | AG34: -0.01757160429 | AH34: -0.005058666667
B35: 64.8 | D35: 92 | E35: 72.39197531 | G35: -1.666666667 | H35: -1.206532922 | L35: 0.6 | N35: 79.674 | O35: 72.1 | Q35: 94.85 | R35: 85.83333333 | T35: =(N35-N$27)/(L35-L$27) -> -56.91 | U35: -94.85 | Y35: 130 | AA35: -0.2843085574 | AB35: -0.5242718447 | AD35: 0.4377692308 | AE35: 0.3961538462 | AG35: -0.01757160429 | AH35: -0.004864102564
B36: 65.4 | D36: 91 | E36: 71.72782875 | G36: -1.666666667 | H36: -1.195463812 | L36: 0.55 | N36: 82.5195 | O36: 74.675 | Q36: 103.4727273 | R36: 93.63636364 | T36: =(N36-N$27)/(L36-L$27) -> -56.91 | U36: -103.4727273 | Y36: 135 | AA36: -0.3721665788 | AB36: -0.6213592233 | AD36: 0.4215555556 | AE36: 0.3814814815 | AG36: -0.01757160429 | AH36: -0.004683950617
B37: 66 | D37: 90 | E37: 71.07575758 | G37: -1.666666667 | H37: -1.18459596 | L37: 0.5 | N37: 85.365 | O37: 77.25 | Q37: 113.82 | R37: 103 | T37: -56.91 | U37: -113.82 | Y37: 140 | AA37: -0.4600246002 | AB37: -0.7184466019 | AD37: 0.4065 | AE37: 0.3678571429 | AG37: -0.01757160429 | AH37: -0.004516666667
B38: 66.6 | D38: 89 | E38: 70.43543544 | G38: -1.666666667 | H38: -1.173923924 | L38: 0.45 | N38: 88.2105 | O38: 79.825 | Q38: 126.4666667 | R38: 114.4444444 | T38: -56.91 | U38: -126.4666667 | Y38: 145 | AA38: -0.5478826217 | AB38: -0.8155339806 | AD38: 0.3924827586 | AE38: 0.3551724138 | AG38: -0.01757160429 | AH38: -0.00436091954
B39: 67.2 | D39: 88 | E39: 69.80654762 | G39: -1.666666667 | H39: -1.16344246 | L39: 0.4 | N39: 91.056 | O39: 82.4 | Q39: 142.275 | R39: 128.75 | T39: -56.91 | U39: -142.275 | Y39: 150 | AA39: -0.6357406431 | AB39: -0.9126213592 | AD39: 0.3794 | AE39: 0.3433333333 | AG39: -0.01757160429 | AH39: -0.004215555556
B40: 67.8 | D40: 87 | E40: 69.18879056 | G40: -1.666666667 | H40: -1.153146509 | L40: 0.35 | N40: 93.9015 | O40: 84.975 | Q40: 162.6 | R40: 147.1428571 | T40: -56.91 | U40: -162.6 | Y40: 155 | AA40: -0.7235986646 | AB40: -1.009708738 | AD40: 0.3671612903 | AE40: 0.3322580645 | AG40: -0.01757160429 | AH40: -0.004079569892
B41: 68.4 | D41: 86 | E41: 68.58187135 | G41: -1.666666667 | H41: -1.143031189 | L41: 0.3 | N41: =+N$8+((1-$L41)*100*(N$8/100)) -> 96.747 | O41: 87.55 | Q41: =+Q$8/$L41 -> 189.7 | R41: 171.6666667 | T41: -56.91 | U41: -189.7 | Y41: 160 | AA41: -0.811456686 | AB41: -1.106796117 | AD41: 0.3556875 | AE41: 0.321875 | AG41: -0.01757160429 | AH41: -0.003952083333
B42: 69 | D42: 85 | E42: 67.98550725 | G42: -1.666666667 | H42: -1.133091787 | L42: 0.25 | N42: 99.5925 | O42: 90.125 | Q42: 227.64 | R42: 206 | T42: -56.91 | U42: -227.64 | Y42: 165 | AA42: -0.8993147074 | AB42: -1.203883495 | AD42: 0.3449090909 | AE42: 0.3121212121 | AG42: -0.01757160429 | AH42: -0.003832323232
B43: 69.6 | D43: 84 | E43: 67.39942529 | G43: -1.666666667 | H43: -1.123323755 | L43: 0.2 | N43: 102.438 | O43: 92.7 | Q43: 284.55 | R43: 257.5 | T43: -56.91 | U43: -284.55 | Y43: 170 | AA43: -0.9871727289 | AB43: -1.300970874 | AD43: 0.3347647059 | AE43: 0.3029411765 | AG43: -0.01757160429 | AH43: -0.003719607843
B44: 70.2 | D44: 83 | E44: 66.82336182 | G44: -1.666666667 | H44: -1.113722697 | L44: 0.15 | N44: 105.2835 | O44: 95.275 | Q44: 379.4 | R44: 343.3333333 | T44: -56.91 | U44: -379.4 | Y44: 175 | AA44: -1.07503075 | AB44: -1.398058252 | AD44: 0.3252 | AE44: 0.2942857143 | AG44: -0.01757160429 | AH44: -0.003613333333
B45: 70.8 | D45: 82 | E45: 66.25706215 | G45: -1.666666667 | H45: -1.104284369 | L45: 0.1 | N45: 108.129 | O45: 97.85 | Q45: 569.1 | R45: 515 | T45: -56.91 | U45: -569.1 | Y45: 180 | AA45: =1-(($Y45-AA$8)/AA$8) -> -1.162888772 | AB45: -1.495145631 | AD45: =IFERROR(AD$8/$Y45,0) -> 0.3161666667 | AE45: 0.2861111111 | AG45: -0.01757160429 | AH45: -0.003512962963
B46: 71.4 | D46: 81 | E46: 65.70028011 | G46: -1.666666667 | H46: -1.095004669 | L46: 0.05 | N46: 110.9745 | O46: 100.425 | Q46: 1138.2 | R46: 1030 | T46: -56.91 | U46: -1138.2 | Y46: 185 | AA46: -1.250746793 | AB46: -1.59223301 | AD46: 0.3076216216 | AE46: 0.2783783784 | AG46: -0.01757160429 | AH46: -0.003418018018
B47: 72 | D47: 80 | E47: 65.15277778 | G47: -1.666666667 | H47: -1.08587963 | L47: =+L46-0.05 -> -3.191891196e-16 | N47: 113.82 | O47: 103 | Y47: 190 | AA47: -1.338604815 | AB47: -1.689320388 | AD47: 0.2995263158 | AE47: 0.2710526316
B48: 72.6 | D48: 79 | E48: 64.61432507 | G48: -1.666666667 | H48: -1.076905418 | Y48: 195 | AA48: -1.426462836 | AB48: -1.786407767 | AD48: 0.2918461538 | AE48: 0.2641025641
B49: 73.2 | D49: 78 | E49: 64.08469945 | G49: -1.666666667 | H49: -1.068078324 | Y49: 200 | AA49: -1.514320857 | AB49: -1.883495146 | AD49: 0.28455 | AE49: 0.2575
B50: 73.8 | D50: 77 | E50: 63.56368564 | G50: -1.666666667 | H50: -1.059394761 | Y50: 205 | AA50: -1.602178879 | AB50: -1.980582524 | AD50: 0.2776097561 | AE50: 0.2512195122
B51: 74.4 | D51: 76 | E51: 63.05107527 | G51: -1.666666667 | H51: -1.050851254 | Y51: 210 | AA51: -1.6900369 | AB51: -2.077669903 | AD51: 0.271 | AE51: 0.2452380952
B52: 75 | D52: 75 | E52: 62.54666667 | G52: -1.666666667 | H52: -1.042444444 | Y52: 215 | AA52: -1.777894922 | AB52: -2.174757282 | AD52: 0.2646976744 | AE52: 0.2395348837
B53: 75.6 | D53: 74 | E53: 62.05026455 | G53: -1.666666667 | H53: -1.034171076 | Y53: 220 | AA53: -1.865752943 | AB53: -2.27184466 | AD53: 0.2586818182 | AE53: 0.2340909091
B54: 76.2 | D54: 73 | E54: 61.56167979 | G54: -1.666666667 | H54: -1.026027997 | Y54: 225 | AA54: -1.953610965 | AB54: -2.368932039 | AD54: 0.2529333333 | AE54: 0.2288888889
B55: 76.8 | D55: 72 | E55: 61.08072917 | G55: -1.666666667 | H55: -1.018012153 | Y55: 230 | AA55: -2.041468986 | AB55: -2.466019417 | AD55: 0.2474347826 | AE55: 0.2239130435
B56: 77.4 | D56: 71 | E56: 60.60723514 | G56: -1.666666667 | H56: -1.010120586 | Y56: 235 | AA56: -2.129327008 | AB56: -2.563106796 | AD56: 0.2421702128 | AE56: 0.2191489362
B57: 78 | D57: 70 | E57: 60.14102564 | G57: -1.666666667 | H57: -1.002350427 | Y57: 240 | AA57: -2.217185029 | AB57: -2.660194175 | AD57: 0.237125 | AE57: 0.2145833333
B58: 78.6 | D58: 69 | E58: 59.68193384 | G58: -1.666666667 | H58: -0.9946988974 | Y58: 245 | AA58: -2.30504305 | AB58: -2.757281553 | AD58: 0.2322857143 | AE58: 0.2102040816
B59: 79.2 | D59: 68 | E59: 59.22979798 | G59: -1.666666667 | H59: -0.9871632997 | Y59: 250 | AA59: -2.392901072 | AB59: -2.854368932 | AD59: 0.22764 | AE59: 0.206
B60: 79.8 | D60: 67 | E60: 58.78446115 | G60: -1.666666667 | H60: -0.9797410192 | Y60: 255 | AA60: -2.480759093 | AB60: -2.951456311 | AD60: 0.2231764706 | AE60: 0.2019607843
B61: 80.4 | D61: 66 | E61: 58.34577114 | G61: -1.666666667 | H61: -0.9724295191 | Y61: 260 | AA61: -2.568617115 | AB61: -3.048543689 | AD61: 0.2188846154 | AE61: 0.1980769231
B62: 81 | D62: 65 | E62: 57.91358025 | G62: -1.666666667 | H62: -0.9652263374 | Y62: 265 | AA62: -2.656475136 | AB62: -3.145631068 | AD62: 0.214754717 | AE62: 0.1943396226
B63: 81.6 | D63: 64 | E63: 57.4877451 | G63: -1.666666667 | H63: -0.958129085 | Y63: 270 | AA63: -2.744333158 | AB63: -3.242718447 | AD63: 0.2107777778 | AE63: 0.1907407407
B64: 82.2 | D64: 63 | E64: 57.06812652 | G64: -1.666666667 | H64: -0.951135442 | Y64: 275 | AA64: -2.832191179 | AB64: -3.339805825 | AD64: 0.2069454545 | AE64: 0.1872727273
B65: 82.8 | D65: 62 | E65: 56.65458937 | G65: -1.666666667 | H65: -0.9442431562 | Y65: 280 | AA65: =1-(($Y65-AA$8)/AA$8) -> -2.9200492 | AB65: -3.436893204 | AD65: =IFERROR(AD$8/$Y65,0) -> 0.20325 | AE65: 0.1839285714
B66: 83.4 | D66: 61 | E66: 56.2470024 | G66: -1.666666667 | H66: -0.93745004 | Y66: 285 | AA66: -3.007907222 | AB66: -3.533980583 | AD66: 0.1996842105 | AE66: 0.1807017544
B67: 84 | D67: 60 | E67: 55.8452381 | G67: -1.666666667 | H67: -0.9307539683 | Y67: 290 | AA67: -3.095765243 | AB67: -3.631067961 | AD67: 0.1962413793 | AE67: 0.1775862069
B68: 84.6 | D68: 59 | E68: 55.44917258 | G68: -1.666666667 | H68: -0.9241528763 | Y68: 295 | AA68: -3.183623265 | AB68: -3.72815534 | AD68: 0.1929152542 | AE68: 0.1745762712
B69: 85.2 | D69: 58 | E69: 55.05868545 | G69: -1.666666667 | H69: -0.9176447574 | Y69: 300 | AA69: -3.271481286 | AB69: -3.825242718 | AD69: 0.1897 | AE69: 0.1716666667
B70: 85.8 | D70: 57 | E70: 54.67365967 | G70: -1.666666667 | H70: -0.9112276612 | Y70: 305 | AA70: -3.359339308 | AB70: -3.922330097 | AD70: 0.1865901639 | AE70: 0.168852459
B71: 86.4 | D71: 56 | E71: 54.29398148 | G71: -1.666666667 | H71: -0.9048996914 | Y71: 310 | AA71: -3.447197329 | AB71: -4.019417476 | AD71: 0.1835806452 | AE71: 0.1661290323
B72: 87 | D72: 55 | E72: 53.91954023 | G72: -1.666666667 | H72: -0.8986590038 | Y72: 315 | AA72: -3.535055351 | AB72: -4.116504854 | AD72: 0.1806666667 | AE72: 0.1634920635
B73: 87.6 | D73: 54 | E73: 53.55022831 | G73: -1.666666667 | H73: -0.8925038052 | Y73: 320 | AA73: -3.622913372 | AB73: -4.213592233 | AD73: 0.17784375 | AE73: 0.1609375
B74: 88.2 | D74: 53 | E74: 53.18594104 | G74: -1.666666667 | H74: -0.8864323507 | Y74: 325 | AA74: -3.710771393 | AB74: -4.310679612 | AD74: 0.1751076923 | AE74: 0.1584615385
B75: 88.8 | D75: 52 | E75: 52.82657658 | G75: -1.666666667 | H75: -0.8804429429 | Y75: 330 | AA75: -3.798629415 | AB75: -4.40776699 | AD75: 0.1724545455 | AE75: 0.1560606061
B76: 89.4 | D76: 51 | E76: 52.47203579 | G76: -1.666666667 | H76: -0.8745339299 | Y76: 335 | AA76: -3.886487436 | AB76: -4.504854369 | AD76: 0.169880597 | AE76: 0.1537313433
B77: 90 | D77: 50 | E77: 52.12222222 | G77: -1.666666667 | H77: -0.8687037037 | Y77: 340 | AA77: -3.974345458 | AB77: -4.601941748 | AD77: 0.1673823529 | AE77: 0.1514705882
B78: 90.6 | D78: 49 | E78: 51.77704194 | G78: -1.666666667 | H78: -0.862950699 | Y78: 345 | AA78: -4.062203479 | AB78: -4.699029126 | AD78: 0.1649565217 | AE78: 0.1492753623
B79: 91.2 | D79: 48 | E79: 51.43640351 | G79: -1.666666667 | H79: -0.8572733918 | Y79: 350 | AA79: -4.150061501 | AB79: -4.796116505 | AD79: 0.1626 | AE79: 0.1471428571
B80: 91.8 | D80: 47 | E80: 51.10021786 | G80: -1.666666667 | H80: -0.8516702977 | Y80: 355 | AA80: -4.237919522 | AB80: -4.893203883 | AD80: 0.1603098592 | AE80: 0.1450704225
B81: 92.4 | D81: 46 | E81: 50.76839827 | G81: -1.666666667 | H81: -0.8461399711 | Y81: 360 | AA81: -4.325777543 | AB81: -4.990291262 | AD81: 0.1580833333 | AE81: 0.1430555556
B82: 93 | D82: 45 | E82: 50.44086022 | G82: -1.666666667 | H82: -0.8406810036 | Y82: 365 | AA82: -4.413635565 | AB82: -5.087378641 | AD82: 0.1559178082 | AE82: 0.1410958904
B83: 93.6 | D83: 44 | E83: 50.11752137 | G83: -1.666666667 | H83: -0.8352920228 | Y83: 370 | AA83: -4.501493586 | AB83: -5.184466019 | AD83: 0.1538108108 | AE83: 0.1391891892
B84: 94.2 | D84: 43 | E84: 49.79830149 | G84: -1.666666667 | H84: -0.8299716914 | Y84: 375 | AA84: -4.589351608 | AB84: -5.281553398 | AD84: 0.15176 | AE84: 0.1373333333
B85: 94.8 | D85: 42 | E85: 49.48312236 | G85: -1.666666667 | H85: -0.824718706 | Y85: 380 | AA85: =1-(($Y85-AA$8)/AA$8) -> -4.677209629 | AB85: -5.378640777 | AD85: =IFERROR(AD$8/$Y85,0) -> 0.1497631579 | AE85: 0.1355263158
B86: 95.4 | D86: 41 | E86: 49.17190776 | G86: -1.666666667 | H86: -0.8195317959 | Y86: 385 | AA86: -4.765067651 | AB86: -5.475728155 | AD86: 0.1478181818 | AE86: 0.1337662338
B87: 96 | D87: 40 | E87: 48.86458333 | G87: -1.666666667 | H87: -0.8144097222 | Y87: 390 | AA87: -4.852925672 | AB87: -5.572815534 | AD87: 0.1459230769 | AE87: 0.1320512821
B88: 96.6 | D88: 39 | E88: 48.5610766 | G88: -1.666666667 | H88: -0.8093512767 | Y88: 395 | AA88: -4.940783694 | AB88: -5.669902913 | AD88: 0.1440759494 | AE88: 0.1303797468
B89: 97.2 | D89: 38 | E89: 48.26131687 | G89: -1.666666667 | H89: -0.8043552812 | Y89: 400 | AA89: -5.028641715 | AB89: -5.766990291 | AD89: 0.142275 | AE89: 0.12875
B90: 97.8 | D90: 37 | E90: 47.96523517 | G90: -1.666666667 | H90: -0.7994205862 | Y90: 405 | AA90: -5.116499736 | AB90: -5.86407767 | AD90: 0.1405185185 | AE90: 0.1271604938
B91: 98.4 | D91: 36 | E91: 47.67276423 | G91: -1.666666667 | H91: -0.7945460705 | Y91: 410 | AA91: -5.204357758 | AB91: -5.961165049 | AD91: 0.138804878 | AE91: 0.1256097561
B92: 99 | D92: 35 | E92: 47.38383838 | G92: -1.666666667 | H92: =(E92-E$27)/(B92-B$27) -> -0.7897306397 | Y92: 415 | AA92: -5.292215779 | AB92: -6.058252427 | AD92: 0.1371325301 | AE92: 0.1240963855
B93: =+B92+$D$10 -> 99.6 | D93: =(1-((B93-$D$9)/$D$9))*100 -> 34 | E93: =($E$9/$B93)*100 -> 47.09839357 | G93: =(D93-D$27)/(B93-B$27) -> -1.666666667 | H93: -0.7849732262 | Y93: 420 | AA93: -5.380073801 | AB93: -6.155339806 | AD93: 0.1355 | AE93: 0.1226190476
B94: 100.2 | D94: 33 | E94: 46.81636727 | G94: -1.666666667 | H94: -0.7802727878 | Y94: =+Y93+5 -> 425 | AA94: -5.467931822 | AB94: -6.252427184 | AD94: 0.1339058824 | AE94: 0.1211764706
B95: 100.8 | D95: 32 | E95: 46.53769841 | G95: -1.666666667 | H95: -0.7756283069 | Y95: 430 | AA95: -5.555789844 | AB95: -6.349514563 | AD95: 0.1323488372 | AE95: 0.1197674419
B96: 101.4 | D96: 31 | E96: 46.26232742 | G96: -1.666666667 | H96: -0.7710387903 | Y96: 435 | AA96: -5.643647865 | AB96: -6.446601942 | AD96: 0.1308275862 | AE96: 0.1183908046
B97: 102 | D97: 30 | E97: 45.99019608 | G97: -1.666666667 | H97: -0.766503268 | Y97: 440 | AA97: -5.731505886 | AB97: -6.54368932 | AD97: 0.1293409091 | AE97: 0.1170454545
B98: 102.6 | D98: 29 | E98: 45.72124756 | G98: -1.666666667 | H98: -0.7620207927 | Y98: 445 | AA98: -5.819363908 | AB98: -6.640776699 | AD98: 0.1278876404 | AE98: 0.1157303371
B99: 103.2 | D99: 28 | E99: 45.45542636 | G99: -1.666666667 | H99: -0.7575904393 | Y99: 450 | AA99: -5.907221929 | AB99: -6.737864078 | AD99: 0.1264666667 | AE99: 0.1144444444
B100: 103.8 | D100: 27 | E100: 45.19267823 | G100: -1.666666667 | H100: -0.7532113038 | Y100: 455 | AA100: -5.995079951 | AB100: -6.834951456 | AD100: 0.1250769231 | AE100: 0.1131868132
B101: 104.4 | D101: 26 | E101: 44.93295019 | G101: -1.666666667 | H101: -0.7488825032 | Y101: 460 | AA101: -6.082937972 | AB101: -6.932038835 | AD101: 0.1237173913 | AE101: 0.1119565217
B102: 105 | D102: 25 | E102: 44.67619048 | G102: -1.666666667 | H102: -0.7446031746 | Y102: 465 | AA102: -6.170795994 | AB102: -7.029126214 | AD102: 0.1223870968 | AE102: 0.1107526882
B103: 105.6 | D103: 24 | E103: 44.42234848 | G103: -1.666666667 | H103: -0.7403724747 | Y103: 470 | AA103: -6.258654015 | AB103: -7.126213592 | AD103: 0.1210851064 | AE103: 0.1095744681
B104: 106.2 | D104: 23 | E104: 44.17137476 | G104: -1.666666667 | H104: -0.7361895794 | Y104: 475 | AA104: -6.346512037 | AB104: -7.223300971 | AD104: 0.1198105263 | AE104: 0.1084210526
B105: 106.8 | D105: 22 | E105: 43.92322097 | G105: -1.666666667 | H105: -0.7320536829 | Y105: 480 | AA105: =1-(($Y105-AA$8)/AA$8) -> -6.434370058 | AB105: -7.32038835 | AD105: =IFERROR(AD$8/$Y105,0) -> 0.1185625 | AE105: 0.1072916667
B106: 107.4 | D106: 21 | E106: 43.67783985 | G106: -1.666666667 | H106: -0.7279639975 | Y106: 485 | AA106: -6.522228079 | AB106: -7.417475728 | AD106: 0.1173402062 | AE106: 0.106185567
B107: 108 | D107: 20 | E107: 43.43518519 | G107: -1.666666667 | H107: -0.7239197531 | Y107: 490 | AA107: -6.610086101 | AB107: -7.514563107 | AD107: 0.1161428571 | AE107: 0.1051020408
B108: 108.6 | D108: 19 | E108: 43.19521179 | Y108: 495 | AA108: -6.697944122 | AB108: -7.611650485 | AD108: 0.114969697 | AE108: 0.104040404
B109: 109.2 | D109: 18 | E109: 42.95787546 | Y109: 500 | AA109: -6.785802144 | AB109: -7.708737864 | AD109: 0.11382 | AE109: 0.103
B110: 109.8 | D110: 17 | E110: 42.72313297 | Y110: 505 | AA110: -6.873660165 | AB110: -7.805825243 | AD110: 0.1126930693 | AE110: 0.101980198
B111: 110.4 | D111: 16 | E111: 42.49094203 | Y111: 510 | AA111: -6.961518187 | AB111: -7.902912621 | AD111: 0.1115882353 | AE111: 0.1009803922
B112: 111 | D112: 15 | E112: 42.26126126 | Y112: 515 | AA112: -7.049376208 | AB112: -8 | AD112: 0.1105048544 | AE112: 0.1
B113: 111.6 | D113: 14 | E113: 42.03405018 | Y113: 520 | AA113: -7.137234229 | AB113: -8.097087379 | AD113: 0.1094423077 | AE113: 0.09903846154
B114: 112.2 | D114: 13 | E114: 41.80926916 | Y114: 525 | AA114: -7.225092251 | AB114: -8.194174757 | AD114: 0.1084 | AE114: 0.0980952381
B115: 112.8 | D115: 12 | E115: 41.58687943 | Y115: 530 | AA115: -7.312950272 | AB115: -8.291262136 | AD115: 0.1073773585 | AE115: 0.09716981132
B116: 113.4 | D116: 11 | E116: 41.36684303 | Y116: 535 | AA116: -7.400808294 | AB116: -8.388349515 | AD116: 0.1063738318 | AE116: 0.09626168224
B117: 114 | D117: 10 | E117: 41.14912281 | Y117: 540 | AA117: -7.488666315 | AB117: -8.485436893 | AD117: 0.1053888889 | AE117: 0.09537037037
B118: 114.6 | D118: 9 | E118: 40.93368237 | Y118: 545 | AA118: -7.576524337 | AB118: -8.582524272 | AD118: 0.1044220183 | AE118: 0.09449541284
B119: 115.2 | D119: 8 | E119: 40.72048611 | Y119: 550 | AA119: -7.664382358 | AB119: -8.67961165 | AD119: 0.1034727273 | AE119: 0.09363636364
B120: 115.8 | D120: 7 | E120: 40.50949914 | Y120: 555 | AA120: -7.75224038 | AB120: -8.776699029 | AD120: 0.1025405405 | AE120: 0.09279279279
B121: 116.4 | D121: 6 | E121: 40.30068729 | Y121: 560 | AA121: -7.840098401 | AB121: -8.873786408 | AD121: 0.101625 | AE121: 0.09196428571
B122: 117 | D122: 5 | E122: 40.09401709 | Y122: 565 | AA122: -7.927956422 | AB122: -8.970873786 | AD122: 0.1007256637 | AE122: 0.09115044248
B123: 117.6 | D123: 4 | E123: 39.88945578 | Y123: 570 | AA123: -8.015814444 | AB123: -9.067961165 | AD123: 0.09984210526 | AE123: 0.09035087719
B124: 118.2 | D124: 3 | E124: 39.68697124 | Y124: 575 | AA124: -8.103672465 | AB124: -9.165048544 | AD124: 0.09897391304 | AE124: 0.08956521739
B125: 118.8 | D125: 2 | E125: 39.48653199 | Y125: 580 | AA125: -8.191530487 | AB125: -9.262135922 | AD125: 0.09812068966 | AE125: 0.08879310345
B126: 119.4 | D126: 1 | E126: 39.2881072 | Y126: 585 | AA126: -8.279388508 | AB126: -9.359223301 | AD126: 0.09728205128 | AE126: 0.08803418803
B127: 120 | D127: 8.770761895e-13 | E127: 39.09166667 | Y127: 590 | AA127: -8.36724653 | AB127: -9.45631068 | AD127: 0.09645762712 | AE127: 0.08728813559
B128: 120.6 | D128: -1 | E128: 38.89718076 | Y128: 595 | AA128: -8.455104551 | AB128: -9.553398058 | AD128: 0.09564705882 | AE128: 0.08655462185
B129: 121.2 | D129: -2 | E129: 38.70462046
B130: 121.8 | D130: -3 | E130: 38.51395731
B131: 122.4 | D131: -4 | E131: 38.3251634
B132: 123 | D132: -5 | E132: 38.13821138
B133: 123.6 | D133: -6 | E133: 37.95307443
B134: 124.2 | D134: -7 | E134: 37.76972625
B135: 124.8 | D135: -8 | E135: 37.58814103
B136: 125.4 | D136: -9 | E136: 37.40829346
B137: 126 | D137: -10 | E137: 37.23015873
B138: 126.6 | D138: -11 | E138: 37.05371248
B139: 127.2 | D139: -12 | E139: 36.87893082
B140: 127.8 | D140: -13 | E140: 36.7057903
B141: 128.4 | D141: -14 | E141: 36.53426791
B142: 129 | D142: -15 | E142: 36.36434109
B143: 129.6 | D143: -16 | E143: 36.19598765
B144: 130.2 | D144: -17 | E144: 36.02918587
B145: 130.8 | D145: -18 | E145: 35.86391437
B146: 131.4 | D146: -19 | E146: 35.70015221
B147: 132 | D147: -20 | E147: 35.53787879
B148: 132.6 | D148: -21 | E148: 35.37707391
B149: 133.2 | D149: -22 | E149: 35.21771772
B150: 133.8 | D150: -23 | E150: 35.05979073
B151: 134.4 | D151: -24 | E151: 34.90327381
B152: 135 | D152: -25 | E152: 34.74814815
B153: 135.6 | D153: -26 | E153: 34.59439528
B154: 136.2 | D154: -27 | E154: 34.44199706
B155: 136.8 | D155: -28 | E155: 34.29093567
B156: 137.4 | D156: -29 | E156: 34.1411936
B157: =+B156+$D$10 -> 138 | D157: =(1-((B157-$D$9)/$D$9))*100 -> -30 | E157: =($E$9/$B157)*100 -> 33.99275362
B158: 138.6 | D158: -31 | E158: 33.84559885
B159: 139.2 | D159: -32 | E159: 33.69971264
B160: 139.8 | D160: -33 | E160: 33.55507868
B161: 140.4 | D161: -34 | E161: 33.41168091
B162: 141 | D162: -35 | E162: 33.26950355
B163: 141.6 | D163: -36 | E163: 33.12853107
B164: 142.2 | D164: -37 | E164: 32.98874824
B165: 142.8 | D165: -38 | E165: 32.85014006
B166: 143.4 | D166: -39 | E166: 32.71269177
B167: 144 | D167: -40 | E167: 32.57638889
B168: 144.6 | D168: -41 | E168: 32.44121715
B169: 145.2 | D169: -42 | E169: 32.30716253
B170: 145.8 | D170: -43 | E170: 32.17421125
B171: 146.4 | D171: -44 | E171: 32.04234973
B172: 147 | D172: -45 | E172: 31.91156463
B173: 147.6 | D173: -46 | E173: 31.78184282
B174: 148.2 | D174: -47 | E174: 31.65317139
B175: 148.8 | D175: -48 | E175: 31.52553763
B176: 149.4 | D176: -49 | E176: 31.39892905
B177: 150 | D177: -50 | E177: 31.27333333
B178: 150.6 | D178: -51 | E178: 31.14873838
B179: 151.2 | D179: -52 | E179: 31.02513228
B180: 151.8 | D180: -53 | E180: 30.90250329
B181: 152.4 | D181: -54 | E181: 30.7808399
B182: 153 | D182: -55 | E182: 30.66013072
B183: 153.6 | D183: -56 | E183: 30.54036458
B184: 154.2 | D184: -57 | E184: 30.42153048
B185: 154.8 | D185: -58 | E185: 30.30361757
B186: 155.4 | D186: -59 | E186: 30.18661519
B187: 156 | D187: -60 | E187: 30.07051282
B188: 156.6 | D188: -61 | E188: 29.95530013
B189: 157.2 | D189: -62 | E189: 29.84096692
B190: 157.8 | D190: -63 | E190: 29.72750317
B191: 158.4 | D191: -64 | E191: 29.61489899
B192: 159 | D192: -65 | E192: 29.50314465
B193: 159.6 | D193: -66 | E193: 29.39223058
B194: 160.2 | D194: -67 | E194: 29.28214732
B195: 160.8 | D195: -68 | E195: 29.17288557
B196: 161.4 | D196: -69 | E196: 29.06443618
B197: 162 | D197: -70 | E197: 28.95679012
B198: 162.6 | D198: -71 | E198: 28.8499385
B199: 163.2 | D199: -72 | E199: 28.74387255
B200: 163.8 | D200: -73 | E200: 28.63858364
B201: 164.4 | D201: -74 | E201: 28.53406326
B202: 165 | D202: -75 | E202: 28.43030303
B203: 165.6 | D203: -76 | E203: 28.32729469
B204: 166.2 | D204: -77 | E204: 28.22503008
B205: 166.8 | D205: -78 | E205: 28.1235012
B206: 167.4 | D206: -79 | E206: 28.02270012
... 221 more rows
